[Event "IIFL Wealth 4th Mumbai GM"]
[Site "Mumbai"]
[Date "2019.01.03"]
[Round "5"]
[White "Laoussing, Mathis"]
[Black "Shah, Ram Surat Prasad"]
[Result "0-1"]
[ECO "C01"]
[WhiteElo "1438"]
[BlackElo "1639"]
[Annotator "NA"]
[PlyCount "74"]
[EventDate "2018.12.30"]
[EventType "swiss"]
[EventCountry "IND"]
[SourceTitle "playchess.com"]
[Source "ChessBase"]
[SourceQuality "1"]
[TimeControl "40/5400+30:1800+30"]

1. e4 {[%emt 0:00:00]} e6 {[%emt 0:00:00]} 2. d4 {[%emt 0:00:00]} d5 {[%emt 0:00:00]} 3. exd5 {[%emt 0:00:16]} exd5 {[%emt 0:00:11]} 4. Nf3 {[%emt 0:01:02]} Nf6 {[%emt 0:00:21]} 5. c4 {[%emt 0:00:54]} Bb4+ {[%emt 0:00:44]} 6. Bd2 {[%emt 0:00:25]} c5 {[%emt 0:00:45]} 7. Bxb4 {[%emt 0:02:56]} cxb4 {[%emt 0:00:15]} 8. Be2 {[%emt 0:01:43]} O-O {[%emt 0:00:20]} 9. O-O {[%emt 0:00:05]} Be6 {[%emt 0:00:57]} 10. Nbd2 {[%emt 0:01:16]} Nc6 {[%emt 0:00:43]} 11. Rc1 {[%emt 0:01:16]} Qa5 {[%emt 0:02:05]} 12. Qb3 {[%emt 0:08:02]} Qd8 {[%emt 0:01:50]} 13. c5 {[%emt 0:00:42]} Ne4 {[%emt 0:03:00]} 14. Qc2 {[%emt 0:02:11]} f5 {[%emt 0:01:16]} 15. Bb5 {[%emt 0:02:05]} a5 {[%emt 0:01:56]} 16. Bxc6 {[%emt 0:00:16]} bxc6 {[%emt 0:00:47]} 17. Ne5 {[%emt 0:00:11]} Qc7 {[%emt 0:02:54]} 18. f4 {[%emt 0:03:36]} a4 {[%emt 0:06:51]} 19. Nxe4 {[%emt 0:00:33]} dxe4 {[%emt 0:00:29]} 20. a3 {[%emt 0:00:34]} bxa3 {[%emt 0:04:41]} 21. bxa3 {[%emt 0:00:15]} Rfb8 {[%emt 0:02:34]} 22. Rb1 {[%emt 0:05:08]} Rb3 {[%emt 0:01:15]} 23. Nc4 {[%emt 0:00:39]} Qd8 {[%emt 0:06:05]} 24. Rxb3 {[%emt 0:00:51]} axb3 {[%emt 0:00:19]} 25. Qxb3 {[%emt 0:00:08]} Qxd4+ {[%emt 0:00:21]} 26. Kh1 {[%emt 0:02:57]} Qxc4 {[%emt 0:00:45]} 27. Qxc4 {[%emt 0:00:44]} Bxc4 {[%emt 0:00:16]} 28. Ra1 {[%emt 0:00:14]} e3 {[%emt 0:01:33]} 29. Kg1 {[%emt 0:00:21]} Kf7 {[%emt 0:00:28]} 30. h4 {[%emt 0:00:20]} Ke6 {[%emt 0:00:13]} 31. Rd1 {[%emt 0:00:36]} e2 {[%emt 0:01:43]} 32. Rd6+ {[%emt 0:00:17]} Ke7 {[%emt 0:00:29]} 33. Kf2 {[%emt 0:00:15]} Rd8 {[%emt 0:02:22]} 34. Rxc6 {[%emt 0:02:57]} Rd1 {[%emt 0:00:34]} 35. Rc7+ {[%emt 0:00:41]} Kd8 {[%emt 0:00:21]} 36. Rxg7 {[%emt 0:00:21]} e1=Q+ 37. Kf3 Bd5# {[%emt 0:01:54]} 0-1

[Event "IIFL Wealth 4th Mumbai GM"]
[Site "Mumbai"]
[Date "2019.01.03"]
[Round "5"]
[White "Ahsan, Ali Jewel"]
[Black "Mahindrakar Indrajeet"]
[Result "0-1"]
[ECO "E92"]
[WhiteElo "1363"]
[BlackElo "2106"]
[Annotator "NA"]
[PlyCount "48"]
[EventDate "2018.12.30"]
[EventType "swiss"]
[EventCountry "IND"]
[SourceTitle "playchess.com"]
[Source "ChessBase"]
[SourceQuality "1"]
[TimeControl "40/5400+30:1800+30"]

1. d4 {[%emt 0:00:10]} Nf6 {[%emt 0:00:00]} 2. c4 {[%emt 0:00:04]} g6 {[%emt 0:00:07]} 3. Nc3 {[%emt 0:00:04]} Bg7 {[%emt 0:00:17]} 4. e4 {[%emt 0:00:04]} d6 {[%emt 0:00:06]} 5. Nf3 {[%emt 0:00:03]} O-O {[%emt 0:00:09]} 6. Be2 {[%emt 0:00:01]} e5 {[%emt 0:00:08]} 7. d5 {[%emt 0:00:03]} a5 {[%emt 0:00:17]} 8. Bg5 {[%emt 0:00:05]} h6 {[%emt 0:00:24]} 9. Be3 {[%emt 0:00:04]} Na6 {[%emt 0:02:16]} 10. Nd2 {[%emt 0:00:10]} Nd7 {[%emt 0:04:20]} 11. O-O {[%emt 0:03:38]} f5 {[%emt 0:02:36]} 12. f3 {[%emt 0:00:15]} f4 {[%emt 0:00:51]} 13. Bf2 {[%emt 0:00:02]} g5 {[%emt 0:03:08]} 14. a3 {[%emt 0:01:19]} Rf7 {[%emt 0:04:26]} 15. b4 {[%emt 0:01:37]} Bf8 {[%emt 0:00:48]} 16. Nb3 {[%emt 0:25:16]} h5 {[%emt 0:03:41]} 17. Nxa5 {[%emt 0:14:49]} Rg7 {[%emt 0:01:28]} 18. g4 {[%emt 0:00:24]} Qf6 {[%emt 0:04:20]} 19. h3 {[%emt 0:02:14]} Rh7 {[%emt 0:02:52]} 20. Kg2 {[%emt 0:00:06]} Qh6 {[%emt 0:00:30]} 21. Rh1 {[%emt 0:00:05]} Nf6 {[%emt 0:01:41]} 22. Nb3 {[%emt 0:10:46]} Be7 {[%emt 0:01:50]} 23. c5 {[%emt 0:03:09]} Kf7 {[%emt 0:07:02]} 24. Qd3 {[%emt 0:16:16]} Nxb4 {[%emt 0:03:05]} 0-1

[Event "IIFL Wealth 4th Mumbai GM"]
[Site "Mumbai"]
[Date "2019.01.03"]
[Round "5"]
[White "Wahba, David George"]
[Black "Nepal, Prakash"]
[Result "0-1"]
[ECO "B49"]
[WhiteElo "1295"]
[BlackElo "1902"]
[Annotator "NA"]
[PlyCount "82"]
[EventDate "2018.12.30"]
[EventType "swiss"]
[EventCountry "IND"]
[SourceTitle "playchess.com"]
[Source "ChessBase"]
[SourceQuality "1"]
[TimeControl "40/5400+30:1800+30"]

1. e4 c5 2. Nf3 {[%emt 0:01:15]} e6 {[%emt 0:00:02]} 3. d4 cxd4 4. Nxd4 Nc6 5. Nc3 Qc7 6. Be3 {[%emt 0:17:56]} a6 {[%emt 0:01:43]} 7. Be2 {[%emt 0:00:17]} Nf6 {[%emt 0:00:11]} 8. O-O {[%emt 0:04:31]} Bb4 {[%emt 0:00:21]} 9. f3 {[%emt 0:16:44]} O-O {[%emt 0:02:15]} 10. Qd2 d5 11. exd5 Nxd5 12. a3 {[%emt 0:12:14]} Nxe3 {[%emt 0:01:17]} 13. Qxe3 Nxd4 14. Qxd4 Bc5 15. Qxc5 Qxc5+ 16. Kh1 b5 17. Rad1 Bb7 18. Rd7 Bc6 19. Rc7 Qd6 20. Rxc6 Qxc6 21. f4 Rad8 22. Bf3 Qc4 23. Be2 Qc5 24. h3 {[%emt 0:27:34]} h6 {[%emt 0:05:57]} 25. Kh2 Rd4 26. Kh1 Rfd8 27. Kh2 Qf5 28. Kh1 Qxc2 29. Bf3 Qxb2 30. Nd1 Qxa3 31. Kh2 Rxf4 32. Kh1 Rxf3 33. gxf3 Rxd1 34. Rxd1 Qxf3+ 35. Kh2 Qxd1 36. h4 Qg4 37. h5 {[%emt 0:11:40]} b4 {[%emt 0:06:12]} 38. Kh1 b3 39. Kh2 {[%emt 0:00:49]} b2 {[%emt 0:00:36]} 40. Kh1 {[%emt 0:00:13]} b1=Q+ {[%emt 0:00:09]} 41. Kh2 {[%emt 0:30:11]} Qbg1# {[%emt 0:30:05]} 0-1

[Event "IIFL Wealth 4th Mumbai GM"]
[Site "Mumbai"]
[Date "2019.01.03"]
[Round "5"]
[White "Mahalakshmi D M"]
[Black "Vantika Agrawal"]
[Result "0-1"]
[ECO "A45"]
[WhiteElo "1145"]
[BlackElo "2143"]
[Annotator "NA"]
[PlyCount "102"]
[EventDate "2018.12.30"]
[EventType "swiss"]
[EventCountry "IND"]
[SourceTitle "playchess.com"]
[Source "ChessBase"]
[SourceQuality "1"]
[TimeControl "40/5400+30:1800+30"]

1. d4 {[%emt 0:00:00]} Nf6 {[%emt 0:04:11]} 2. Bf4 {[%emt 0:00:00]} g6 {[%emt 0:00:19]} 3. Nc3 {[%emt 0:00:00]} d5 {[%emt 0:00:46]} 4. e3 {[%emt 0:00:00]} Bg7 {[%emt 0:00:06]} 5. h4 {[%emt 0:00:00]} h5 {[%emt 0:00:38]} 6. Nf3 {[%emt 0:00:00]} c6 {[%emt 0:10:53]} 7. Qd2 {[%emt 0:04:19]} Nbd7 {[%emt 0:07:20]} 8. Ne5 {[%emt 0:00:31]} Nxe5 {[%emt 0:09:24]} 9. Bxe5 {[%emt 0:01:32]} b5 {[%emt 0:13:27]} 10. f3 {[%emt 0:05:43]} a5 {[%emt 0:07:38]} 11. Be2 {[%emt 0:08:01]} Qb6 {[%emt 0:20:14]} 12. a4 {[%emt 0:14:13]} b4 {[%emt 0:01:17]} 13. Na2 {[%emt 0:02:04]} O-O {[%emt 0:04:57]} 14. Nc1 {[%emt 0:03:08]} c5 {[%emt 0:07:23]} 15. Nd3 {[%emt 0:07:00]} cxd4 {[%emt 0:04:07]} 16. exd4 {[%emt 0:01:46]} Nd7 {[%emt 0:01:06]} 17. Bxg7 Kxg7 {[%emt 0:00:07]} 18. g4 {[%emt 0:14:31]} Nf6 {[%emt 0:01:49]} 19. gxh5 {[%emt 0:05:04]} Nxh5 {[%emt 0:00:31]} 20. Nf4 {[%emt 0:01:21]} Rh8 {[%emt 0:02:17]} 21. O-O-O {[%emt 0:04:07]} Nxf4 {[%emt 0:00:30]} 22. Qxf4 {[%emt 0:00:07]} Qf6 {[%emt 0:00:26]} 23. Qg3 {[%emt 0:02:03]} Bf5 {[%emt 0:00:32]} 24. Bd3 {[%emt 0:03:06]} Rac8 {[%emt 0:00:47]} 25. Kb1 {[%emt 0:01:16]} Bxd3 {[%emt 0:00:30]} 26. Rxd3 {[%emt 0:00:08]} Rh5 {[%emt 0:01:05]} 27. b3 {[%emt 0:02:41]} e6 {[%emt 0:00:32]} 28. Kb2 {[%emt 0:01:55]} Rch8 {[%emt 0:00:26]} 29. Qc7 {[%emt 0:01:26]} Rxh4 {[%emt 0:00:13]} 30. Rxh4 {[%emt 0:01:19]} Rxh4 {[%emt 0:00:12]} 31. Qxa5 {[%emt 0:00:13]} Rxd4 {[%emt 0:00:22]} 32. Rxd4 {[%emt 0:00:32]} Qxd4+ {[%emt 0:00:05]} 33. Kb1 {[%emt 0:00:18]} e5 {[%emt 0:00:56]} 34. Qb5 {[%emt 0:01:43]} Qd1+ {[%emt 0:00:39]} 35. Kb2 {[%emt 0:00:06]} Qd4+ {[%emt 0:00:05]} 36. Kb1 {[%emt 0:00:07]} e4 {[%emt 0:00:46]} 37. fxe4 {[%emt 0:01:10]} dxe4 {[%emt 0:00:31]} 38. a5 {[%emt 0:00:14]} Qd1+ {[%emt 0:00:38]} 39. Kb2 {[%emt 0:00:01]} Qd4+ {[%emt 0:00:11]} 40. Kb1 {[%emt 0:00:00]} e3 {[%emt 0:00:00]} 41. a6 {[%emt 0:09:21]} Qe4 {[%emt 0:20:00]} 42. Qe2 {[%emt 0:05:59]} f5 {[%emt 0:02:38]} 43. Kc1 {[%emt 0:05:48]} Qd4 {[%emt 0:06:11]} 44. Kb1 {[%emt 0:00:29]} Qd2 {[%emt 0:00:21]} 45. Qf3 {[%emt 0:13:20]} e2 {[%emt 0:00:45]} 46. Qb7+ {[%emt 0:00:10]} Kf6 {[%emt 0:00:45]} 47. Qb6+ {[%emt 0:02:30]} Ke5 {[%emt 0:00:43]} 48. Qc5+ {[%emt 0:01:32]} Ke4 {[%emt 0:01:37]} 49. Qe7+ {[%emt 0:01:31]} Kf3 {[%emt 0:01:16]} 50. Qb7+ {[%emt 0:00:05]} Kf2 {[%emt 0:00:19]} 51. Qb6+ {[%emt 0:00:10]} Qe3 {[%emt 0:00:29]} 0-1